bitfinex/quotes_BTCUSD_20230403
["timestamp","ask_amount","ask_price","bid_price","bid_amount"]
[1680500348002,0.00397865,27732.0,27731.0,0.42671797]
[1680500349429,0.00397865,27732.0,27731.0,0.55546989]
[1680500349683,0.00397865,27732.0,27731.0,0.58346989]
[1680500350137,0.00397865,27732.0,27731.0,0.55546989]
[1680500350337,0.00397865,27732.0,27731.0,0.45471797]
[1680500352773,0.00397865,27732.0,27731.0,0.58346989]
[1680500352990,0.00397865,27732.0,27731.0,0.45471797]
[1680500353893,0.00397865,27732.0,27731.0,0.58346989]
[1680500354342,0.00397865,27732.0,27731.0,0.45471797]
[1680500356205,0.00391865,27732.0,27731.0,0.45471797]
[1680500356416,0.00370865,27732.0,27731.0,0.45471797]
[1680500358178,0.00327457,27732.0,27731.0,0.45471797]
[1680500359085,0.00327457,27732.0,27731.0,0.63471797]
[1680500360378,0.00327457,27732.0,27731.0,1.14326989]
[1680500361265,0.00327457,27732.0,27731.0,0.76346989]
[1680500361956,0.00327457,27732.0,27731.0,0.76358989]
[1680500362661,0.00327457,27732.0,27731.0,0.76346989]
[1680500368626,0.00327457,27732.0,27731.0,0.9351364]
[1680500368835,0.00327457,27732.0,27731.0,0.80638448]
[1680500369258,0.00327457,27732.0,27731.0,0.93511446]
[1680500369468,0.00327457,27732.0,27731.0,0.80638448]
[1680500371499,0.00327457,27732.0,27731.0,1.02108761]
[1680500371728,0.00327457,27732.0,27731.0,0.80650448]
[1680500371948,0.00327457,27732.0,27731.0,1.02114761]
[1680500372350,0.00327457,27732.0,27731.0,0.8494811]
[1680500372799,0.00327457,27732.0,27731.0,0.8493011]
[1680500373015,0.00327457,27732.0,27731.0,0.8494211]
[1680500373273,0.00327457,27732.0,27731.0,0.93483797]
[1680500373499,0.00327457,27732.0,27731.0,0.93489797]
[1680500374186,0.00327457,27732.0,27731.0,1.14955365]
[1680500374392,0.00327457,27732.0,27731.0,0.93489797]
[1680500375861,0.00327457,27732.0,27731.0,1.31469797]
[1680500376818,0.00327457,27732.0,27731.0,1.57218157]
[1680500377220,0.00327457,27732.0,27731.0,1.31469797]
[1680500377446,0.00327457,27732.0,27731.0,1.49498797]
[1680500378322,0.00327457,27732.0,27731.0,1.75247157]
[1680500378749,0.00327457,27732.0,27731.0,1.72447157]
[1680500378956,0.00327457,27732.0,27731.0,1.49498797]
[1680500379178,0.00327457,27732.0,27731.0,1.46698797]
[1680500379372,0.00327457,27732.0,27731.0,1.57218157]
[1680500379768,0.00327457,27732.0,27731.0,1.54418157]
[1680500379971,0.00327457,27732.0,27731.0,1.57218157]
[1680500380172,0.00327457,27732.0,27731.0,1.54418157]
[1680500380343,0.00327457,27732.0,27731.0,1.31469797]
[1680500380743,0.00327457,27732.0,27731.0,1.54418157]
[1680500380953,0.00327457,27732.0,27731.0,1.62158157]
[1680500381182,0.00327457,27732.0,27731.0,1.63008157]
[1680500381587,0.00320026,27732.0,27731.0,1.65790157]
[1680500381794,0.00320026,27732.0,27731.0,1.62990157]
[1680500382356,0.00320026,27732.0,27731.0,1.64940157]
[1680500382985,0.00320026,27732.0,27731.0,1.64950157]
[1680500384150,0.00320026,27732.0,27731.0,1.64962157]
[1680500384372,0.00320026,27732.0,27731.0,1.64950157]
[1680500388735,0.00320026,27732.0,27731.0,1.65800157]
[1680500389140,0.00320026,27732.0,27731.0,1.40051797]
[1680500390445,0.00320026,27732.0,27731.0,1.58079797]
[1680500390857,0.00320026,27732.0,27731.0,1.83821472]
[1680500391076,0.00320026,27732.0,27731.0,1.84744477]
[1680500392031,0.00320026,27732.0,27731.0,1.92564477]
[1680500393844,0.00320026,27732.0,27731.0,1.89764477]
[1680500394097,0.00320026,27732.0,27731.0,1.92563477]
[1680500394684,0.00320026,27732.0,27731.0,1.92575477]
[1680500395236,0.00320026,27732.0,27731.0,1.92563477]
[1680500396171,0.02196027,27734.0,27732.0,0.1]
[1680500396413,0.02196027,27734.0,27733.0,1.35288997]
[1680500396657,0.02196027,27734.0,27733.0,1.65288997]
[1680500397334,0.02196027,27734.0,27733.0,1.68088997]
[1680500398276,0.02196027,27734.0,27733.0,1.65288997]
[1680500398489,0.02196027,27734.0,27733.0,1.68088997]
[1680500401428,0.02196027,27734.0,27733.0,1.86117997]
[1680500404391,0.02196027,27734.0,27733.0,1.86115997]
[1680500409150,0.02196027,27734.0,27733.0,1.68088997]
[1680500414017,0.02196027,27734.0,27733.0,1.30108997]
[1680500414227,0.02196027,27734.0,27733.0,1.22308997]
[1680500415302,0.02196027,27734.0,27733.0,1.19508997]
[1680500415521,0.02196027,27734.0,27733.0,1.22308997]
[1680500415736,0.02196027,27734.0,27733.0,1.19508997]
[1680500416401,0.02196027,27734.0,27733.0,1.22308997]
[1680500417724,0.02196027,27734.0,27733.0,1.14175897]
[1680500417941,0.02196027,27734.0,27733.0,1.22126697]
[1680500418153,0.02196027,27734.0,27733.0,1.19326697]
[1680500418573,0.02188397,27734.0,27733.0,1.22126697]
[1680500418786,0.02188397,27734.0,27733.0,1.16975897]
[1680500419008,0.02188397,27734.0,27733.0,1.22453297]
[1680500419274,0.02188397,27734.0,27733.0,0.89653297]
[1680500419494,0.02188397,27734.0,27733.0,0.92453297]
[1680500419716,0.02188397,27734.0,27733.0,0.92353097]
[1680500425651,0.02188397,27734.0,27733.0,0.86975897]
[1680500427202,0.02188397,27734.0,27733.0,0.92217297]
[1680500427610,0.02188397,27734.0,27733.0,0.86975897]
[1680500429112,0.02188397,27734.0,27733.0,0.92509297]
[1680500429782,0.02188397,27734.0,27733.0,0.86975897]
[1680500430448,0.02188397,27734.0,27733.0,0.91954997]
[1680500430692,0.02188397,27734.0,27733.0,0.92301797]
[1680500430913,0.02188397,27734.0,27733.0,0.86975897]
[1680500431148,0.02188397,27734.0,27733.0,0.50917797]
[1680500431789,0.02188397,27734.0,27733.0,0.72382063]
[1680500432082,0.09958397,27734.0,27733.0,0.72382063]
[1680500432290,0.09958397,27734.0,27733.0,0.56322197]
[1680500432495,0.09958397,27734.0,27733.0,0.74959327]
[1680500432719,0.09958397,27734.0,27733.0,0.58557739]
[1680500432933,0.09958397,27734.0,27733.0,0.53496239]
[1680500433372,0.09958397,27734.0,27733.0,0.74959611]
[1680500433581,0.09958397,27734.0,27733.0,0.53496239]
[1680500434043,0.09958397,27734.0,27733.0,0.58671639]
[1680500434761,0.02188397,27734.0,27733.0,0.58671639]
[1680500437256,0.02145,27734.0,27733.0,0.58671639]
[1680500445535,2.19926,27737.0,27733.0,0.58689639]
[1680500445759,0.0775,27736.0,27735.0,0.30044642]
[1680500445981,0.0775,27736.0,27735.0,0.76101764]
[1680500446237,0.0775,27736.0,27735.0,0.81342764]
[1680500446495,0.0775,27736.0,27735.0,0.83878172]
[1680500446928,0.07637,27736.0,27735.0,0.83890172]
[1680500447817,2.19926,27737.0,27735.0,0.86690172]
[1680500448017,2.19905,27737.0,27736.0,0.53388563]
[1680500448182,2.19926,27737.0,27736.0,0.62402063]
[1680500449219,2.19926,27737.0,27736.0,0.65202063]
[1680500449389,2.19926,27737.0,27736.0,0.6773688]
[1680500451037,2.19926,27737.0,27736.0,0.84905247]
[1680500451290,1.99926,27737.0,27736.0,1.12376073]
[1680500451726,1.99926,27737.0,27736.0,1.12388073]
[1680500451727,1.99905,27737.0,27736.0,1.12388073]
[1680500452159,1.99905,27737.0,27736.0,1.09588073]
[1680500452375,1.99905,27737.0,27736.0,1.12388073]
[1680500452594,1.99905,27737.0,27736.0,1.12394073]
[1680500453693,1.99905,27737.0,27736.0,1.09594073]
[1680500453952,1.99905,27737.0,27736.0,1.12394073]
[1680500454621,1.99905,27737.0,27736.0,1.12385766]
[1680500455040,1.99905,27737.0,27736.0,1.28913614]
[1680500455495,1.99905,27737.0,27736.0,1.26113614]
[1680500456557,1.99905,27737.0,27736.0,0.90933614]
[1680500456702,1.99905,27737.0,27736.0,0.88133614]
[1680500456907,1.99905,27737.0,27736.0,0.90933614]
[1680500457111,1.99905,27737.0,27736.0,0.88133614]
[1680500457319,1.99905,27737.0,27736.0,0.90933614]
[1680500457683,1.99905,27737.0,27736.0,0.88133614]
[1680500458073,1.99905,27737.0,27736.0,0.90933614]
[1680500458247,1.99905,27737.0,27736.0,0.88133614]
[1680500458446,1.99905,27737.0,27736.0,1.12381145]
[1680500459319,1.99905,27737.0,27736.0,1.09581145]
[1680500459530,1.99905,27737.0,27736.0,1.12381145]
[1680500459734,1.99905,27737.0,27736.0,1.09581145]
[1680500459952,1.99905,27737.0,27736.0,1.12381145]
[1680500460183,1.99905,27737.0,27736.0,1.09581145]
[1680500460398,1.99905,27737.0,27736.0,1.12381145]
[1680500460616,1.99926,27737.0,27736.0,1.12354718]
[1680500460823,1.99926,27737.0,27736.0,1.09554718]
[1680500461036,1.99926,27737.0,27736.0,1.12354718]
[1680500461299,1.99926,27737.0,27736.0,1.09554718]
[1680500462366,1.99926,27737.0,27736.0,1.12354718]
[1680500462844,1.99926,27737.0,27736.0,1.09554718]
[1680500463066,1.99926,27737.0,27736.0,1.12354718]
[1680500468342,1.99926,27737.0,27736.0,1.09554718]
[1680500468560,1.99926,27737.0,27736.0,1.12354718]
[1680500473249,1.99926,27737.0,27736.0,1.20104718]
[1680500474345,1.99926,27737.0,27736.0,1.17304718]
[1680500474557,1.99926,27737.0,27736.0,1.20104718]
[1680500479719,1.99926,27737.0,27736.0,0.98657187]
[1680500480145,1.9992,27737.0,27736.0,1.43689958]
[1680500480363,1.99905,27737.0,27736.0,1.40895958]
[1680500480580,1.99905,27737.0,27736.0,1.40901958]
[1680500480792,1.99905,27737.0,27736.0,1.43701958]
[1680500481972,1.99898685,27737.0,27736.0,1.40901958]
[1680500482199,1.99898685,27737.0,27736.0,1.35951958]
[1680500483486,1.99898685,27737.0,27736.0,1.20925187]
[1680500484364,1.99898685,27737.0,27736.0,1.96307985]
[1680500485058,1.99898685,27737.0,27736.0,1.12366088]
[1680500485286,1.99919685,27737.0,27736.0,1.24486307]
[1680500485756,1.99919685,27737.0,27736.0,1.12591188]
[1680500488394,1.99919685,27737.0,27736.0,0.91150287]
[1680500488836,1.99898685,27737.0,27736.0,1.57734702]
[1680500489055,1.99898685,27737.0,27736.0,2.29046377]
[1680500490130,1.99898685,27737.0,27736.0,2.26246377]
[1680500490352,1.99898685,27737.0,27736.0,2.29046377]
[1680500492113,1.99898685,27737.0,27736.0,2.21266377]
[1680500493249,1.99898685,27737.0,27736.0,2.18466377]
[1680500493464,1.99898685,27737.0,27736.0,2.21266377]
[1680500496520,0.00021,27738.0,27736.0,2.21266377]
[1680500496735,0.005801,27740.0,27737.0,0.78487497]
[1680500496962,0.005801,27740.0,27739.0,0.21452393]
[1680500497186,0.005801,27740.0,27739.0,0.8932959]
[1680500497354,0.005801,27740.0,27739.0,1.06492238]
[1680500498455,0.005801,27740.0,27739.0,1.09292238]
[1680500498888,0.005801,27740.0,27739.0,1.0928232]
[1680500500315,0.005801,27740.0,27739.0,0.92119672]
[1680500500720,0.005741,27740.0,27739.0,0.92119672]
[1680500501165,0.005741,27740.0,27739.0,1.09288113]
[1680500502835,0.005741,27740.0,27739.0,0.92119672]
[1680500503725,0.005741,27740.0,27739.0,1.0928788]
[1680500503922,0.005741,27740.0,27739.0,0.92119672]
[1680500506853,0.005741,27740.0,27739.0,1.09286823]
[1680500507239,0.005741,27740.0,27739.0,0.92119672]
[1680500507469,0.005741,27740.0,27739.0,1.0928813]
[1680500507684,0.005741,27740.0,27739.0,1.0928822]
[1680500508194,0.005741,27740.0,27739.0,0.92119672]
[1680500508396,0.005741,27740.0,27739.0,1.09288212]
[1680500509335,0.00333886,27740.0,27739.0,1.11690353]
[1680500509545,0.00333886,27740.0,27739.0,1.11690384]
[1680500509756,0.00333886,27740.0,27739.0,1.11690663]
[1680500510278,0.00094673,27740.0,27739.0,1.11690663]
[1680500510480,0.00094673,27740.0,27739.0,1.11690748]
[1680500510925,0.00094673,27740.0,27739.0,0.94521813]
[1680500511339,0.02376001,27743.0,27739.0,0.94521813]
[1680500511547,0.02376001,27743.0,27741.0,0.08584867]
[1680500511765,0.02376001,27743.0,27742.0,0.53469397]
[1680500512389,0.02376001,27743.0,27742.0,0.55845846]
[1680500512814,0.02376001,27743.0,27742.0,0.58645846]
[1680500514193,0.02376001,27743.0,27742.0,0.58494346]
[1680500514610,0.02376001,27743.0,27742.0,0.53290046]
[1680500515977,0.10156001,27743.0,27742.0,0.10583349]
[1680500516228,0.10177001,27743.0,27742.0,0.06978749]
[1680500516648,0.20177001,27743.0,27742.0,0.06978749]
[1680500517078,0.20177001,27743.0,27742.0,0.04178749]
[1680500517294,0.20177001,27743.0,27742.0,0.06978749]
[1680500517724,0.20177001,27743.0,27742.0,0.04178749]
[1680500517945,0.20177001,27743.0,27742.0,0.05278749]
[1680500519431,0.10177001,27743.0,27742.0,0.05278749]
[1680500522572,0.02397001,27743.0,27742.0,0.67384313]
[1680500522793,0.02397001,27743.0,27742.0,0.76645246]
[1680500523057,0.02376001,27743.0,27742.0,0.76645246]
[1680500523502,0.02138356,27743.0,27742.0,0.76645246]
[1680500523730,0.02138356,27743.0,27742.0,0.75563246]
[1680500523944,0.02138356,27743.0,27742.0,0.78363246]
[1680500524373,0.01901701,27743.0,27742.0,0.78357246]
[1680500524559,0.01901701,27743.0,27742.0,0.78345246]
[1680500524703,0.01901701,27743.0,27742.0,0.75545246]
[1680500524925,0.01901701,27743.0,27742.0,0.78345246]
[1680500525304,0.01666032,27743.0,27742.0,0.78345246]
[1680500525509,0.01666032,27743.0,27742.0,0.96345246]
[1680500526341,0.01431345,27743.0,27742.0,0.96345246]
[1680500527392,0.01197636,27743.0,27742.0,0.96345246]
[1680500528407,0.00964901,27743.0,27742.0,0.60847749]
[1680500528630,0.08764901,27743.0,27742.0,0.51587665]
[1680500528821,0.08764901,27743.0,27742.0,0.51599665]
[1680500529378,0.08764901,27743.0,27742.0,0.51587665]
[1680500529789,0.08764901,27743.0,27742.0,0.33564465]
[1680500530475,0.08764901,27743.0,27742.0,0.33576465]
[1680500533873,0.08764901,27743.0,27742.0,0.33564465]
[1680500542333,0.08764901,27743.0,27742.0,0.30764465]
[1680500542549,0.08764901,27743.0,27742.0,0.33564465]
[1680500542753,0.08764901,27743.0,27742.0,0.30764465]
[1680500542918,0.08764901,27743.0,27742.0,0.32464465]
[1680500545476,0.08764901,27743.0,27742.0,0.37546365]
[1680500545696,0.08764901,27743.0,27742.0,0.73043862]
[1680500546125,0.00964901,27743.0,27742.0,0.73043862]
[1680500547228,0.00964901,27743.0,27742.0,0.67961962]
[1680500553074,0.00957257,27743.0,27742.0,0.80839262]
[1680500554388,0.00725492,27743.0,27742.0,0.80839262]
[1680500555489,0.00494692,27743.0,27742.0,0.80839262]
[1680500556369,0.00264854,27743.0,27742.0,0.80839262]
[1680500557218,0.00264854,27743.0,27742.0,0.32464465]
[1680500570224,0.00221466,27743.0,27742.0,0.32464465]
[1680500572074,0.00221466,27743.0,27742.0,0.45341765]
[1680500572317,0.00221466,27743.0,27742.0,0.32464465]
[1680500572901,0.00221466,27743.0,27742.0,0.45341765]
[1680500575677,0.00221466,27743.0,27742.0,0.80839262]
[1680500576786,0.00221466,27743.0,27742.0,0.72253546]
[1680500576997,0.00221466,27743.0,27742.0,0.80851746]
[1680500578318,0.00221466,27743.0,27742.0,0.72253546]
[1680500578753,0.00221466,27743.0,27742.0,0.77405846]
[1680500580352,0.00221466,27743.0,27742.0,0.72253546]
[1680500580566,0.00221466,27743.0,27742.0,0.77253746]
[1680500581594,0.00221466,27743.0,27742.0,0.72253546]
[1680500582167,0.00221466,27743.0,27742.0,0.89423279]
[1680500582392,0.02376001,27744.0,27743.0,0.052001]
[1680500582609,0.02376001,27744.0,27743.0,0.49295368]
[1680500582819,0.02376001,27744.0,27743.0,0.54702068]
[1680500583042,0.02376001,27744.0,27743.0,0.62379268]
[1680500583276,0.02376001,27744.0,27743.0,0.64429374]
[1680500583493,0.02376001,27744.0,27743.0,0.65529374]
[1680500584362,0.02376001,27744.0,27743.0,0.52652074]
[1680500584570,0.02376001,27744.0,27743.0,0.70649574]
[1680500585234,0.02376001,27744.0,27743.0,0.64429374]
[1680500585442,0.02376001,27744.0,27743.0,0.67229374]
[1680500586952,0.02376001,27744.0,27743.0,0.54352074]
[1680500587164,0.02376001,27744.0,27743.0,0.67229374]
[1680500587400,0.02376001,27744.0,27743.0,0.54352074]
[1680500587604,0.02376001,27744.0,27743.0,0.67229374]
[1680500588649,0.02376001,27744.0,27743.0,0.54352074]
[1680500589077,0.02376001,27744.0,27743.0,0.67229374]
[1680500589280,0.02376001,27744.0,27743.0,0.54352074]
[1680500589901,0.02376001,27744.0,27743.0,0.67229374]
[1680500590116,0.02376001,27744.0,27743.0,0.54352074]
[1680500590314,0.02376001,27744.0,27743.0,0.18854577]
[1680500591459,0.02376001,27744.0,27743.0,0.16054577]
[1680500591663,0.02376001,27744.0,27743.0,0.18454577]
[1680500595453,0.02376001,27744.0,27743.0,0.09856806]
[1680500606039,0.02376001,27744.0,27743.0,0.18454577]
[1680500606842,0.02368051,27744.0,27743.0,0.18454577]
[1680500608057,0.02368051,27744.0,27743.0,0.23618477]
[1680500608259,0.02368051,27744.0,27743.0,0.18454577]
[1680500608461,0.02368051,27744.0,27743.0,0.53952074]
[1680500608642,0.02368051,27744.0,27743.0,0.72161874]
[1680500609823,0.02368051,27744.0,27743.0,0.59296574]
[1680500610007,0.02368051,27744.0,27743.0,0.56896574]
[1680500610218,0.02368051,27744.0,27743.0,0.59696574]
[1680500610420,0.02368051,27744.0,27743.0,0.72573874]
[1680500610640,0.02368051,27744.0,27743.0,0.67241374]
[1680500611411,0.02368051,27744.0,27743.0,0.54364074]
[1680500611629,0.02368051,27744.0,27743.0,0.67241374]
[1680500611833,0.02368051,27744.0,27743.0,0.72759274]
[1680500612048,0.02368051,27744.0,27743.0,0.72439274]
[1680500612254,0.02368051,27744.0,27743.0,0.67241374]
[1680500612462,0.02368051,27744.0,27743.0,0.54364074]
[1680500613412,0.02368051,27744.0,27743.0,0.56764074]
[1680500615259,0.02368051,27744.0,27743.0,0.21266577]
[1680500615461,0.02368051,27744.0,27743.0,0.21254577]
[1680500616307,0.02368051,27744.0,27743.0,0.2129796]
[1680500617318,0.02368051,27744.0,27743.0,0.3417526]
[1680500617520,0.02368051,27744.0,27743.0,0.3418726]
[1680500617942,0.02368051,27744.0,27743.0,0.2130996]
[1680500618329,0.02368051,27744.0,27743.0,0.3417526]
[1680500618512,0.02368051,27744.0,27743.0,0.2130996]
[1680500618720,0.01868051,27744.0,27743.0,0.3417526]
[1680500618935,0.01868051,27744.0,27743.0,0.2129796]
[1680500619361,0.01868051,27744.0,27743.0,0.3417526]
[1680500619530,0.01868051,27744.0,27743.0,0.2898726]
[1680500620059,0.01868051,27744.0,27743.0,0.1889796]
[1680500620714,0.01868051,27744.0,27743.0,0.3177526]
[1680500621319,0.01868051,27744.0,27743.0,0.1889796]
[1680500621559,0.01868051,27744.0,27743.0,0.3177526]
[1680500622834,0.01868051,27744.0,27743.0,0.2897526]
[1680500623038,0.01868051,27744.0,27743.0,0.3137526]
[1680500623560,0.01868051,27744.0,27743.0,0.72024757]
[1680500624885,0.01868051,27744.0,27743.0,0.63426986]
[1680500626624,0.01868051,27744.0,27743.0,0.74812385]
[1680500626843,0.01868051,27744.0,27743.0,0.58387686]
[1680500627051,0.01868051,27744.0,27743.0,0.58369686]
[1680500627261,0.01868051,27744.0,27743.0,0.68369686]
[1680500627476,0.01658518,27744.0,27743.0,0.68369686]
[1680500627689,0.01658518,27744.0,27743.0,0.65969686]
[1680500628098,0.01658518,27744.0,27743.0,0.68769686]
[1680500628254,8.518e-05,27744.0,27743.0,1.11769686]
[1680500628485,0.02376001,27745.0,27744.0,0.35023123]
[1680500628715,0.02376001,27745.0,27744.0,1.39712895]
[1680500629395,0.0216853,27745.0,27744.0,1.41579954]
[1680500629812,0.0216853,27745.0,27744.0,1.37278936]
[1680500630254,0.01962135,27745.0,27744.0,1.40078936]
[1680500631486,0.017566,27745.0,27744.0,1.40078936]
[1680500632321,0.01551921,27745.0,27744.0,1.30078936]
[1680500633431,0.01348095,27745.0,27744.0,1.30078936]
[1680500633861,0.01348095,27745.0,27744.0,1.42958292]
[1680500634302,0.01145118,27745.0,27744.0,1.42958292]
[1680500634752,0.02376001,27748.0,27747.0,0.5798]
[1680500634974,0.02376001,27748.0,27747.0,2.19681796]
[1680500635214,0.02376001,27748.0,27747.0,2.08296397]
[1680500635461,0.02174047,27748.0,27747.0,2.10315938]
[1680500635684,0.02174047,27748.0,27747.0,2.33087883]
[1680500635912,0.02174047,27748.0,27747.0,2.71672692]
[1680500636138,0.02174047,27748.0,27747.0,2.74472692]
[1680500636378,0.01975891,27748.0,27747.0,0.65904209]
[1680500636608,0.01975891,27748.0,27747.0,0.33212213]
[1680500636609,0.67220875,27748.0,27747.0,0.33212213]
[1680500636861,0.3798,27746.0,27744.0,0.11820075]
[1680500637087,0.19982,27742.0,27741.0,0.00018]
[1680500637353,0.19982,27742.0,27736.0,0.12876794]
[1680500637354,1.07656984,27742.0,27736.0,0.08596529]
[1680500637585,0.0775,27738.0,27736.0,0.08584529]
[1680500637811,0.14197487,27737.0,27736.0,0.08584529]
[1680500638065,0.00021,27737.0,27735.0,0.08602529]
[1680500638289,0.14197487,27737.0,27735.0,0.00018]
[1680500638518,0.1782,27736.0,27735.0,0.00018]
[1680500639403,0.91297497,27736.0,27735.0,0.00018]
[1680500639621,0.91318497,27736.0,27735.0,0.00018]
[1680500639921,0.94668497,27736.0,27735.0,0.18118]
[1680500640385,0.92168497,27736.0,27735.0,0.18018]
[1680500640614,0.84668497,27736.0,27735.0,0.18118]
[1680500640830,0.82168497,27736.0,27735.0,0.18018]
[1680500641050,0.84668497,27736.0,27735.0,0.18118]
[1680500642181,0.92488497,27736.0,27735.0,0.18118]
[1680500642392,0.85518497,27736.0,27735.0,0.18118]
[1680500642835,0.45038497,27736.0,27735.0,0.18018]
[1680500643067,0.45038497,27736.0,27735.0,0.18118]
[1680500643068,0.02721,27736.0,27735.0,0.18118]
[1680500643256,0.00021,27737.0,27735.0,0.18018]
[1680500643515,0.025,27736.0,27735.0,0.19675234]
[1680500643749,0.00021,27737.0,27735.0,0.19575234]
[1680500645043,0.027,27736.0,27735.0,0.19675234]
[1680500645482,0.00021,27737.0,27735.0,0.19575234]
[1680500645704,0.73477497,27736.0,27735.0,0.19575234]
[1680500645917,0.73498497,27736.0,27735.0,0.19575234]
[1680500646130,0.73498497,27736.0,27735.0,0.19675234]
[1680500646354,0.74348497,27736.0,27735.0,0.19575234]
[1680500646570,0.74348497,27736.0,27735.0,0.19675234]
[1680500646789,0.74348497,27736.0,27735.0,0.19575234]
[1680500647202,0.76248497,27736.0,27735.0,0.19675234]
[1680500647422,0.74348497,27736.0,27735.0,0.19575234]
[1680500648367,0.77048497,27736.0,27735.0,0.19675234]
[1680500648798,0.74348497,27736.0,27735.0,0.19575234]
[1680500649022,0.74348497,27736.0,27735.0,0.19675234]
[1680500649247,0.74348497,27736.0,27735.0,0.19575234]
[1680500649389,0.74348497,27736.0,27735.0,0.19675234]
[1680500649618,0.77048497,27736.0,27735.0,0.19675234]
[1680500649810,0.74348497,27736.0,27735.0,0.19575234]
[1680500650028,0.76248497,27736.0,27735.0,0.19675234]
[1680500651556,0.74348497,27736.0,27735.0,0.19575234]
[1680500652297,0.83018497,27736.0,27735.0,0.19575234]
[1680500652581,0.85718497,27736.0,27735.0,0.19675234]
[1680500652834,0.83018497,27736.0,27735.0,0.19563902]
[1680500653098,0.84918497,27736.0,27735.0,0.19663902]
[1680500653368,0.83018497,27736.0,27735.0,0.19663902]
[1680500653654,0.85718497,27736.0,27735.0,0.19663902]
[1680500654681,0.83018497,27736.0,27735.0,0.19563902]
[1680500654904,0.85518497,27736.0,27735.0,0.19663902]
[1680500655172,0.83018497,27736.0,27735.0,0.19563902]
[1680500655450,0.85718497,27736.0,27735.0,0.19663902]
[1680500655737,0.85518497,27736.0,27735.0,0.19663902]
[1680500656038,0.94070347,27736.0,27735.0,0.19657234]
[1680500656312,1.00220347,27736.0,27735.0,0.19557234]
[1680500656614,1.02920347,27736.0,27735.0,0.19657234]
[1680500656884,1.00220347,27736.0,27735.0,0.19557234]
[1680500657160,1.18247347,27736.0,27735.0,0.19557234]
[1680500657435,1.18247347,27736.0,27735.0,0.18]
[1680500657696,1.20647347,27736.0,27735.0,0.18]
[1680500657946,1.18247347,27736.0,27735.0,0.18]
[1680500658201,1.12395497,27736.0,27735.0,0.18]
[1680500658764,1.32388829,27736.0,27735.0,0.18]
[1680500659254,1.65323829,27736.0,27735.0,0.12375]
[1680500659473,1.68946916,27736.0,27735.0,0.12375]
[1680500659904,1.88202138,27736.0,27735.0,0.12375]
[1680500660127,0.4798,27732.0,27731.0,0.00018]
[1680500660351,1.01647497,27732.0,27730.0,0.012638]
[1680500660601,1.08787497,27731.0,27730.0,0.012638]
[1680500660819,1.09637497,27731.0,27730.0,0.012638]
[1680500661522,1.11874655,27731.0,27730.0,0.02892223]
[1680500662432,1.09312627,27731.0,27730.0,0.02892223]
[1680500662645,1.12012627,27731.0,27730.0,0.02892223]
[1680500663524,1.21482414,27731.0,27730.0,0.02892223]
[1680500663753,1.21503414,27731.0,27730.0,0.02892223]
[1680500663986,1.19154205,27731.0,27730.0,0.02892223]
[1680500664212,1.16454205,27731.0,27730.0,0.02892223]
[1680500664455,1.18972793,27731.0,27730.0,0.02892223]
[1680500664674,1.16272793,27731.0,27730.0,0.02892223]
[1680500664901,1.18972793,27731.0,27730.0,0.02892223]
[1680500665142,1.49232793,27731.0,27730.0,0.02892223]
[1680500665367,1.51932793,27731.0,27730.0,0.02892223]
[1680500665598,0.57973332,27729.0,27727.0,20.00018]
[1680500665828,1.24537497,27728.0,27727.0,20.00018]
[1680500666061,1.24537497,27728.0,27727.0,19.99994]
[1680500666062,1.24558497,27728.0,27727.0,19.99994]
[1680500666281,1.3919399,27728.0,27727.0,19.99994]
[1680500666526,1.24386615,27728.0,27727.0,20.01514823]
[1680500667198,1.24407615,27728.0,27727.0,20.01502823]
[1680500667418,1.26936487,27728.0,27727.0,20.01520823]
[1680500667646,1.24236487,27728.0,27727.0,20.01520823]
[1680500668110,1.08521569,27728.0,27727.0,20.01520823]
[1680500668346,1.08372192,27728.0,27727.0,20.01520823]
[1680500668569,0.9394711,27728.0,27727.0,20.01520823]
[1680500668796,0.9124711,27728.0,27727.0,20.01520823]
[1680500669486,0.9109848,27728.0,27727.0,20.01520823]
[1680500669917,0.9379848,27728.0,27727.0,20.01520823]
[1680500670131,0.9109848,27728.0,27727.0,20.01520823]
[1680500670347,0.93650593,27728.0,27727.0,20.01520823]
[1680500670783,0.90950593,27728.0,27727.0,20.01520823]
[1680500671003,0.93650593,27728.0,27727.0,20.01520823]
[1680500671224,1.07000596,27728.0,27727.0,20.01520823]
[1680500671446,1.06853448,27728.0,27727.0,20.01520823]
[1680500671899,0.93503445,27728.0,27727.0,20.01520823]
[1680500672556,0.93357033,27728.0,27727.0,20.01520823]
[1680500672777,0.93357033,27728.0,27727.0,20.16520823]
[1680500673468,0.93211353,27728.0,27727.0,20.16520823]
[1680500674572,0.93066401,27728.0,27727.0,20.16520823]
[1680500675446,0.92922174,27728.0,27727.0,20.16520823]
[1680500676378,0.92778668,27728.0,27727.0,20.16520823]
[1680500677288,0.90078668,27728.0,27727.0,20.16520823]
[1680500677510,0.9263588,27728.0,27727.0,20.16520823]
[1680500677739,0.8993588,27728.0,27727.0,20.16520823]
[1680500677956,0.9263588,27728.0,27727.0,20.16520823]
[1680500678176,0.8993588,27728.0,27727.0,20.16520823]
[1680500678394,0.92514806,27728.0,27727.0,20.16514823]
[1680500679259,0.89814806,27728.0,27727.0,20.16514823]
[1680500679538,0.92352442,27728.0,27727.0,20.16520823]
[1680500679760,0.89652442,27728.0,27727.0,20.16520823]
[1680500679992,0.92352442,27728.0,27727.0,20.16520823]
[1680500680255,0.89652442,27728.0,27727.0,20.16520823]
[1680500680472,0.92211785,27728.0,27727.0,20.16520823]
[1680500680684,0.89511785,27728.0,27727.0,20.16520823]
[1680500680913,0.92232785,27728.0,27727.0,20.16514823]
[1680500681166,0.92211785,27728.0,27727.0,20.16520823]
[1680500681391,0.92071831,27728.0,27727.0,20.16520823]
[1680500682059,0.83401831,27728.0,27727.0,20.16520823]
[1680500682537,0.8325664,27728.0,27727.0,20.16520823]
[1680500683449,0.83112175,27728.0,27727.0,20.16520823]
[1680500684450,0.82968433,27728.0,27727.0,20.16520823]
[1680500685539,0.82825409,27728.0,27727.0,20.16520823]
[1680500686412,0.826831,27728.0,27727.0,20.16520823]
[1680500687514,0.82541503,27728.0,27727.0,20.16520823]
[1680500688226,1.00573503,27728.0,27727.0,20.16520823]
[1680500688440,1.00445422,27728.0,27727.0,20.16520823]
[1680500689432,1.00305173,27728.0,27727.0,20.16520823]
[1680500689652,0.82273173,27728.0,27727.0,20.16520823]
[1680500690500,0.82133626,27728.0,27727.0,20.16520823]
[1680500691620,0.81994776,27728.0,27727.0,20.16520823]
[1680500692263,0.83797976,27728.0,27727.0,20.16520823]
[1680500692511,0.81856621,27728.0,27727.0,20.16520823]
[1680500693390,0.81719156,27728.0,27727.0,20.16520823]
[1680500694512,0.81582379,27728.0,27727.0,20.16520823]
[1680500694996,0.90252379,27728.0,27727.0,20.16520823]
[1680500695471,0.90116286,27728.0,27727.0,20.16520823]
[1680500696578,0.89980873,27728.0,27727.0,20.16520823]